fUST/lending_fUST_20250731
["ID","MTS","AMOUNT","RATE_DAILY","PERIOD"]
[376323380,1753933841368,-477.94021107,0.00019178,2]
[376323382,1753933841377,-324.55788961,0.00019178,2]
[376323384,1753933841386,-460.0,0.00019178,2]
[376323387,1753933841398,-460.0,0.00019178,2]
[376323389,1753933841407,-999.94,0.00019178,2]
[376323391,1753933841417,-459.88058012,0.00019178,2]
[376323393,1753933841427,-460.0,0.00019178,2]
[376323395,1753933841436,-1077.48,0.00019178,2]
[376323397,1753933841445,-500.0,0.00019178,2]
[376323399,1753933841455,-500.0,0.00019178,2]
[376323401,1753933841465,-500.0,0.00019178,2]
[376323403,1753933841475,-460.0,0.00019178,2]
[376323405,1753933841485,-500.0,0.00019178,2]
[376323407,1753933841494,-460.0,0.00019178,2]
[376323409,1753933841503,-3274.93,0.00019178,2]
[376323411,1753933841514,-460.0,0.00019178,2]
[376323413,1753933841524,-460.0,0.00019178,2]
[376323415,1753933841533,-460.0,0.00019178,2]
[376323417,1753933841543,-460.0,0.00019178,2]
[376323419,1753933841552,-460.0,0.00019178,2]
[376323421,1753933841562,-460.0,0.00019178,2]
[376323423,1753933841571,-117.90632334,0.00019178,2]
[376323426,1753933841586,-342.09367666,0.00019178,2]
[376323428,1753933841596,-241.05632334,0.00019178,2]
[376323577,1753933843135,-383.73,0.00019178,2]
[376323868,1753933845990,-189.80367666,0.00019178,2]
[376323870,1753933846000,-460.0,0.00019178,2]
[376323872,1753933846009,-460.0,0.00019178,2]
[376323874,1753933846019,-460.0,0.00019178,2]
[376323876,1753933846031,-460.0,0.00019178,2]
[376323878,1753933846040,-460.0,0.00019178,2]
[376323881,1753933846050,-587.57,0.00019178,2]
[376323883,1753933846059,-460.0,0.00019178,2]
[376323885,1753933846069,-460.0,0.00019178,2]
[376323887,1753933846081,-460.0,0.00019178,2]
[376323889,1753933846090,-460.0,0.00019178,2]
[376323891,1753933846100,-460.0,0.00019178,2]
[376323893,1753933846109,-461.4435121,0.00019178,2]
[376323895,1753933846118,-460.0,0.00019178,2]
[376323897,1753933846128,-460.0,0.00019178,2]
[376323899,1753933846137,-460.0,0.00019178,2]
[376323901,1753933846146,-125.97881124,0.00019178,2]
[376329822,1753933951689,164.936395,0.00018176,2]
[376329823,1753933959392,150.0,0.000189,2]
[376329824,1753933972331,315.55210609,0.00019,2]
[376329825,1753934005586,-241.35123293,0.00019023,2]
[376329826,1753934007229,-74.20087316,0.00019023,2]
[376329828,1753934188689,241.35123293,0.00018968,2]
[376329829,1753934238908,-841.81,0.00019068,3]
[376329830,1753934238942,-614.82,0.00019068,3]
[376329831,1753934238977,-165.15546932,0.00019073,2]
[376329832,1753934239011,-1200.0,0.00019076,2]
[376329833,1753934239045,-300.0,0.00019076,2]
[376329834,1753934239079,-170.30868174,0.00019077,2]
[376329835,1753934239113,-629.24128505,0.00019077,2]
[376329836,1753934239146,-552.35233063,0.00019077,2]
[376329837,1753934239180,-491.66212116,0.00019077,2]
[376329838,1753934260845,150.0,0.000189,2]
[376329839,1753934287815,2669.16403,0.00026612,120]
[376329840,1753934304691,-300.0,0.00019077,2]
[376329841,1753934304723,-253.86652816,0.00019077,2]
[376329842,1753934325327,-1106.6,0.00019078,2]
[376329844,1753934356057,-300.0,0.00019077,2]
[376329845,1753934356113,170.646897,0.00013699,2]
[376329846,1753934394585,-178.33572694,0.00019061,2]
[376329847,1753934396126,-353.14650746,0.00019061,2]
[376329848,1753934428526,712.5366001,0.00018977,2]
[376329849,1753934456146,-170.3086817,0.00019073,2]
[376329850,1753934456174,-300.0,0.00019077,2]
[376329851,1753934456202,-1200.0,0.00019077,2]
[376329852,1753934456230,-2072.49540971,0.00019078,2]
[376329853,1753934456263,-315.55210609,0.00019078,2]
[376329855,1753934482031,-982.08,0.00019068,3]
[376329856,1753934482061,-491.04,0.00019068,3]
[376329857,1753934482089,-300.0,0.00019077,2]
[376329858,1753934482117,-263.87978214,0.00019078,2]
[376329859,1753934493899,173.28355174,0.00018506,2]
[376329860,1753934495860,-245.52,0.00019068,3]
[376329861,1753934495890,-165.15546932,0.00019073,2]
[376329862,1753934495918,-1036.24770486,0.00019078,2]
[376329864,1753934631526,-736.56,0.00019068,3]
[376329865,1753934657197,-518.12385242,0.00019078,2]
[376329868,1753934755627,-170.3086817,0.00019073,2]
[376329869,1753934774224,-1200.0,0.00019077,2]
[376329870,1753934774255,-300.0,0.00019077,2]
[376329871,1753934774284,-259.06192621,0.00019078,2]
[376329872,1753934774312,-175.91985476,0.00019078,2]
[376329873,1753934774694,-77349.33421995,0.00019078,2]
[376329874,1753934820754,165.15546932,0.00018978,2]
[376329875,1753934840698,-189.0,0.00019077,2]
[376329876,1753934840752,-9456.84453068,0.00019078,2]
[376329877,1753934868632,-259.06192621,0.00019078,2]
[376329878,1753934868680,-19481.87614758,0.00019078,2]
[376329879,1753934905803,-10000.0,0.00019078,2]
[376329880,1753934915526,164.936396,0.00018203,2]
[376329881,1753934945237,170.3086817,0.00018978,2]
[376329882,1753934949787,-9664.7549223,0.00019078,2]
[376329918,1753935038362,-463.68597516,0.00019077,2]
[376329921,1753935038374,-736.31402484,0.00019077,2]
[376329923,1753935038383,-1142.47067578,0.00019078,2]
[376329930,1753935038566,-242904.71950371,0.00019078,2]
[376329931,1753935038576,-19154.04001289,0.00019078,2]
[376329932,1753935038751,-500.0,0.00019173,2]
[376329933,1753935038763,-500.0,0.00019173,2]
[376329934,1753935038773,-503.14242823,0.00019173,2]
[376329935,1753935038782,-505.30809483,0.00019173,2]
[376329936,1753935038791,-401.18,0.00019178,2]
[376329937,1753935038800,-460.0,0.00019178,2]
[376329938,1753935038809,-460.0,0.00019178,2]
[376329939,1753935038819,-460.0,0.00019178,2]
[376329940,1753935038828,-460.0,0.00019178,2]
[376329941,1753935038837,-460.0,0.00019178,2]
[376329942,1753935038846,-335.56360507,0.00019178,2]
[376329943,1753935038856,-460.0,0.00019178,2]
[376329944,1753935038866,-460.0,0.00019178,2]
[376329945,1753935038876,-460.0,0.00019178,2]
[376329946,1753935038886,-460.0,0.00019178,2]
[376329947,1753935038895,-460.0,0.00019178,2]
[376329948,1753935038904,-460.0,0.00019178,2]
[376329949,1753935038914,-460.0,0.00019178,2]
[376329950,1753935038925,-460.0,0.00019178,2]
[376329951,1753935038936,-460.0,0.00019178,2]
[376329952,1753935038945,-460.0,0.00019178,2]
[376329953,1753935038955,-460.0,0.00019178,2]
[376329954,1753935038965,-460.0,0.00019178,2]
[376329955,1753935038974,-464.86400042,0.00019178,2]
[376329956,1753935038984,-460.0,0.00019178,2]
[376329957,1753935038994,-460.0,0.00019178,2]
[376329958,1753935039004,-460.0,0.00019178,2]
[376329959,1753935039013,-460.0,0.00019178,2]
[376329960,1753935039022,-541.1848438,0.00019178,2]
[376329961,1753935039031,-460.0,0.00019178,2]
[376329962,1753935039041,-460.0,0.00019178,2]
[376329963,1753935039050,-460.0,0.00019178,2]
[376329964,1753935039060,-460.0,0.00019178,2]
[376329965,1753935039069,-460.0,0.00019178,2]
[376329966,1753935039079,-462.33246765,0.00019178,2]
[376329967,1753935039089,-460.0,0.00019178,2]
[376329968,1753935039103,-460.0,0.00019178,2]
[376329969,1753935039118,-460.0,0.00019178,2]
[376329970,1753935039127,-460.0,0.00019178,2]
[376329971,1753935039137,-460.0,0.00019178,2]
[376329972,1753935039146,-460.0,0.00019178,2]
[376329973,1753935039156,-460.0,0.00019178,2]
[376329974,1753935039165,-460.0,0.00019178,2]
[376329975,1753935039174,-460.0,0.00019178,2]
[376329976,1753935039184,-460.0,0.00019178,2]
[376329977,1753935039193,-460.0,0.00019178,2]
[376329978,1753935039202,-460.0,0.00019178,2]
[376329979,1753935039211,-460.0,0.00019178,2]
[376329980,1753935039221,-460.0,0.00019178,2]
[376329981,1753935039230,-460.0,0.00019178,2]
[376329982,1753935039238,-460.0,0.00019178,2]
[376329983,1753935039247,-464.30362,0.00019178,2]
[376329984,1753935039257,-462.43460318,0.00019178,2]
[376329985,1753935039265,-587.13496922,0.00019178,2]
[376329986,1753935039274,-460.0,0.00019178,2]
[376329987,1753935039283,-314.60891328,0.00019178,2]
[376329988,1753935039292,-460.0,0.00019178,2]
[376329989,1753935039301,-460.0,0.00019178,2]
[376329990,1753935039310,-466.02397263,0.00019178,2]
[376329991,1753935039319,-460.0,0.00019178,2]
[376329992,1753935039328,-460.0,0.00019178,2]
[376329993,1753935039347,-506.666126,0.00019178,2]
[376329994,1753935039358,-460.0,0.00019178,2]
[376329995,1753935039368,-464.98636219,0.00019178,2]
[376329996,1753935039378,-460.0,0.00019178,2]
[376329997,1753935039388,-460.0,0.00019178,2]
[376329998,1753935039398,-460.0,0.00019178,2]
[376329999,1753935039407,-460.0,0.00019178,2]
[376330000,1753935039419,-460.0,0.00019178,2]
[376330001,1753935039430,-460.0,0.00019178,2]
[376330002,1753935039441,-460.0,0.00019178,2]
[376330003,1753935039451,-460.0,0.00019178,2]
[376330004,1753935039462,-460.0,0.00019178,2]
[376330005,1753935039471,-460.0,0.00019178,2]
[376330006,1753935039481,-460.0,0.00019178,2]
[376330007,1753935039491,-460.0,0.00019178,2]
[376330008,1753935039501,-460.0,0.00019178,2]
[376330009,1753935039511,-460.0,0.00019178,2]
[376330010,1753935039522,-460.0,0.00019178,2]
[376330011,1753935039532,-460.0,0.00019178,2]
[376330012,1753935039541,-462.47755439,0.00019178,2]
[376330013,1753935039556,-460.0,0.00019178,2]
[376330014,1753935039566,-460.0,0.00019178,2]
[376330015,1753935039576,-460.0,0.00019178,2]
[376330016,1753935039586,-460.0,0.00019178,2]
[376330017,1753935039597,-460.0,0.00019178,2]
[376330018,1753935039607,-460.0,0.00019178,2]
[376330019,1753935039616,-460.0,0.00019178,2]
[376330020,1753935039627,-460.0,0.00019178,2]
[376330021,1753935039638,-460.0,0.00019178,2]
[376330022,1753935039647,-460.0,0.00019178,2]
[376330023,1753935039657,-460.0,0.00019178,2]
[376330024,1753935039667,-460.0,0.00019178,2]
[376330025,1753935039677,-460.0,0.00019178,2]
[376330027,1753935039687,-460.0,0.00019178,2]
[376330028,1753935039697,-460.0,0.00019178,2]
[376330029,1753935039709,-462.12242793,0.00019178,2]
[376330030,1753935039720,-529.69,0.00019178,2]
[376330031,1753935039731,-460.0,0.00019178,2]
[376330032,1753935039740,-460.0,0.00019178,2]
[376330033,1753935039750,-460.0,0.00019178,2]
[376330034,1753935039760,-1091.09,0.00019178,2]
[376330035,1753935039770,-460.0,0.00019178,2]
[376330036,1753935039780,-1349.18,0.00019178,2]
[376330037,1753935039790,-582.26,0.00019178,2]
[376330038,1753935039800,-460.0,0.00019178,2]
[376330040,1753935039810,-460.0,0.00019178,2]
[376330042,1753935039820,-460.0,0.00019178,2]
[376330044,1753935039835,-460.0,0.00019178,2]
[376330046,1753935039846,-460.0,0.00019178,2]
[376330047,1753935039856,-460.0,0.00019178,2]
[376330049,1753935039865,-460.0,0.00019178,2]
[376330052,1753935039876,-460.0,0.00019178,2]
[376330054,1753935039885,-460.0,0.00019178,2]
[376330056,1753935039895,-460.0,0.00019178,2]
[376330058,1753935039904,-460.0,0.00019178,2]
[376330060,1753935039914,-460.0,0.00019178,2]
[376330062,1753935039923,-838.15,0.00019178,2]
[376330064,1753935039933,-460.0,0.00019178,2]
[376330066,1753935039944,-460.0,0.00019178,2]
[376330068,1753935039954,-1290.12,0.00019178,2]
[376330070,1753935039963,-460.0,0.00019178,2]
[376330072,1753935039973,-470.61095494,0.00019178,2]
[376330074,1753935039983,-460.0,0.00019178,2]
[376330076,1753935039992,-460.0,0.00019178,2]
[376330078,1753935040002,-480.02598259,0.00019178,2]
[376330080,1753935040012,-460.0,0.00019178,2]
[376330082,1753935040022,-1000.6,0.00019178,2]
[376330084,1753935040031,-460.0,0.00019178,2]
[376330086,1753935040040,-460.0,0.00019178,2]
[376330088,1753935040050,-460.0,0.00019178,2]
[376330090,1753935040062,-460.0,0.00019178,2]
[376330092,1753935040078,-460.0,0.00019178,2]
[376330094,1753935040088,-460.0,0.00019178,2]
[376330096,1753935040098,-460.0,0.00019178,2]
[376330098,1753935040107,-208.72027163,0.00019178,2]
[376330100,1753935040116,-460.0,0.00019178,2]
[376330102,1753935040127,-460.0,0.00019178,2]
[376330104,1753935040136,-460.0,0.00019178,2]
[376330106,1753935040146,-460.0,0.00019178,2]
[376330108,1753935040156,-460.0,0.00019178,2]
[376330110,1753935040165,-460.0,0.00019178,2]
[376330113,1753935040175,-460.0,0.00019178,2]
[376330115,1753935040185,-460.0,0.00019178,2]
[376330117,1753935040194,-460.0,0.00019178,2]
[376330120,1753935040203,-988.83,0.00019178,2]
[376330122,1753935040212,-376.8194791,0.00019178,2]
[376330124,1753935040222,-460.0,0.00019178,2]
[376330126,1753935040231,-1244.93,0.00019178,2]
[376330128,1753935040241,-460.0,0.00019178,2]
[376330130,1753935040250,-460.0,0.00019178,2]
[376330132,1753935040260,-460.0,0.00019178,2]
[376330134,1753935040269,-461.49687785,0.00019178,2]
[376330136,1753935040278,-460.0,0.00019178,2]
[376330138,1753935040287,-460.0,0.00019178,2]
[376330140,1753935040296,-460.0,0.00019178,2]
[376330142,1753935040305,-1262.25,0.00019178,2]
[376330145,1753935040315,-460.0,0.00019178,2]
[376330147,1753935040324,-197.59358548,0.00019178,2]
[376330149,1753935040334,-461.5142801,0.00019178,2]
[376330151,1753935040343,-460.0,0.00019178,2]
[376330153,1753935040352,-460.0,0.00019178,2]
[376330154,1753935040361,-460.0,0.00019178,2]
[376330156,1753935040370,-460.0,0.00019178,2]
[376330158,1753935040379,-460.0,0.00019178,2]
[376330160,1753935040388,-1422.93,0.00019178,2]
[376330162,1753935040397,-460.0,0.00019178,2]
[376330164,1753935040406,-460.0,0.00019178,2]
[376330166,1753935040415,-460.0,0.00019178,2]
[376330168,1753935040424,-460.0,0.00019178,2]
[376330170,1753935040433,-460.0,0.00019178,2]
[376330172,1753935040443,-460.0,0.00019178,2]
[376330174,1753935040452,-460.0,0.00019178,2]
[376330176,1753935040461,-460.0,0.00019178,2]
[376330178,1753935040470,-500.0,0.00019178,2]
[376330179,1753935040481,-500.0,0.00019178,2]
[376330181,1753935040490,-500.0,0.00019178,2]
[376330183,1753935040499,-850.31,0.00019178,2]
[376330185,1753935040510,-460.0,0.00019178,2]
[376330188,1753935040519,-489.45426339,0.00019178,2]
[376330190,1753935040529,-342.61798437,0.00019178,2]
[376330192,1753935040538,-460.0,0.00019178,2]
[376330194,1753935040551,-239.83258906,0.00019178,2]
[376330196,1753935040560,-167.88281234,0.00019178,2]
[376330198,1753935040570,-151.0,0.00019178,2]
[376330200,1753935040579,-240.72656214,0.00019178,2]
[376330202,1753935040587,-460.0,0.00019178,2]
[376330204,1753935040596,-632.38,0.00019178,2]
[376330206,1753935040605,-460.0,0.00019178,2]
[376330208,1753935040614,-460.0,0.00019178,2]
[376330210,1753935040624,-500.0,0.00019178,2]
[376330212,1753935040633,-460.0,0.00019178,2]
[376330214,1753935040642,-460.0,0.00019178,2]
[376330215,1753935040652,-500.0,0.00019178,2]
[376330218,1753935040661,-500.0,0.00019178,2]
[376330219,1753935040670,-460.0,0.00019178,2]
[376330221,1753935040679,-460.0,0.00019178,2]
[376330223,1753935040689,-500.0,0.00019178,2]
[376330226,1753935040698,-470.81270502,0.00019178,2]
[376330228,1753935040707,-460.0,0.00019178,2]
[376330230,1753935040716,-329.56889352,0.00019178,2]
[376330232,1753935040725,-230.69822546,0.00019178,2]
[376330234,1753935040734,-161.48875782,0.00019178,2]
[376330236,1753935040743,-151.0,0.00019178,2]
[376330238,1753935040752,-460.0,0.00019178,2]
[376330240,1753935040762,-460.0,0.00019178,2]
[376330242,1753935040771,-460.0,0.00019178,2]
[376330244,1753935040780,-460.0,0.00019178,2]
[376330246,1753935040789,-461.64451774,0.00019178,2]
[376330248,1753935040798,-460.0,0.00019178,2]
[376330250,1753935040807,-460.0,0.00019178,2]
[376330252,1753935040816,-1008.44,0.00019178,2]
[376330255,1753935040827,-460.0,0.00019178,2]
[376330256,1753935040836,-460.0,0.00019178,2]
[376330258,1753935040845,-460.0,0.00019178,2]
[376330260,1753935040854,-460.0,0.00019178,2]
[376330263,1753935040864,-1534.56,0.00019178,2]
[376330265,1753935040874,-586.04,0.00019178,2]
[376330267,1753935040883,-500.0,0.00019178,2]
[376330269,1753935040893,-181.05,0.00019178,2]
[376330271,1753935040902,-2486.14,0.00019178,2]
[376330273,1753935040911,-460.0,0.00019178,2]
[376330275,1753935040921,-500.0,0.00019178,2]
[376330277,1753935040930,-180.10611,0.00019178,2]
[376330279,1753935040939,-13962.50889908,0.00019178,2]
[376330281,1753935040949,-500.0,0.00019278,2]
[376330283,1753935040958,-498.88625182,0.00019278,2]
[376330285,1753935040967,-199.22037628,0.00019278,2]
[376330287,1753935040976,-500.0,0.00019278,2]
[376330289,1753935040986,-500.0,0.00019278,2]
[376330291,1753935040995,-460.84225515,0.00019278,2]
[376330293,1753935041005,-172.5895786,0.00019278,2]
[376330295,1753935041014,-426.98035974,0.00019378,2]
[376330297,1753935041024,-500.0,0.00019378,2]
[376330299,1753935041034,-372.63179307,0.00019378,2]
[376330301,1753935041043,-1061.77858055,0.00019451,2]
[376330303,1753935041053,-582.70823975,0.00019451,2]
[376330305,1753935041062,-1061.77858055,0.00019451,2]
[376330307,1753935041076,-1061.77858055,0.00019451,2]
[376330309,1753935041087,-1061.77858055,0.00019451,2]
[376330311,1753935041096,-1061.77858055,0.00019451,2]
[376330313,1753935041105,-1061.77858055,0.00019451,2]
[376330315,1753935041115,-1061.77858055,0.00019451,2]
[376330317,1753935041125,-1061.77858055,0.00019451,2]
[376330319,1753935041134,-1061.77858055,0.00019451,2]
[376330322,1753935041144,-1061.77858055,0.00019451,2]
[376330324,1753935041154,-1061.77858055,0.00019451,2]
[376330326,1753935041163,-1061.77858055,0.00019451,2]
[376330327,1753935041172,-1061.77858055,0.00019451,2]
[376330328,1753935041181,-1061.77858055,0.00019451,2]
[376330330,1753935041191,-1061.77858055,0.00019451,2]
[376330333,1753935041203,-1061.77858055,0.00019451,2]
[376330334,1753935041213,-1100.38871076,0.00019451,2]
[376330335,1753935041223,-1100.38871076,0.00019451,2]
[376330336,1753935041232,-1100.38871076,0.00019451,2]
[376330337,1753935041242,-1100.38871076,0.00019451,2]
[376330339,1753935041251,-1100.38871076,0.00019451,2]
[376330341,1753935041261,-1100.38871076,0.00019451,2]
[376330343,1753935041270,-1100.38871076,0.00019451,2]
[376330345,1753935041280,-1100.38871076,0.00019451,2]
[376330347,1753935041290,-1100.38871076,0.00019451,2]
[376330349,1753935041299,-1100.38871076,0.00019451,2]
[376330351,1753935041308,-1100.38871076,0.00019451,2]
[376330352,1753935041318,-460.0,0.00019452,2]
[376330353,1753935041327,-460.0,0.00019452,2]
[376330354,1753935041336,-460.0,0.00019452,2]
[376330355,1753935041346,-460.0,0.00019452,2]
[376330356,1753935041356,-211.80079419,0.00019452,2]
[376330357,1753935041365,-460.0,0.00019452,2]
[376330358,1753935041375,-460.0,0.00019452,2]
[376330359,1753935041384,-460.0,0.00019452,2]
[376330360,1753935041394,-460.0,0.00019452,2]
[376330361,1753935041403,-460.0,0.00019452,2]
[376330362,1753935041412,-461.5524528,0.00019452,2]
[376330363,1753935041421,-406.87879026,0.00019452,2]
[376330364,1753935041431,-460.0,0.00019452,2]
[376330365,1753935041440,-460.0,0.00019452,2]
[376330366,1753935041449,-460.0,0.00019452,2]
[376330367,1753935041459,-460.0,0.00019452,2]
[376330368,1753935041468,-460.0,0.00019452,2]
[376330369,1753935041478,-460.0,0.00019452,2]
[376330370,1753935041487,-460.0,0.00019452,2]
[376330371,1753935041497,-460.0,0.00019452,2]
[376330372,1753935041507,-577.6,0.00019452,2]
[376330373,1753935041516,-460.0,0.00019452,2]
[376330374,1753935041527,-460.0,0.00019452,2]
[376330375,1753935041537,-460.0,0.00019452,2]
[376330376,1753935041548,-460.0,0.00019452,2]
[376330377,1753935041558,-460.0,0.00019452,2]
[376330378,1753935041568,-460.0,0.00019452,2]
[376330379,1753935041577,-460.0,0.00019452,2]
[376330380,1753935041586,-460.0,0.00019452,2]
[376330381,1753935041596,-460.0,0.00019452,2]
[376330382,1753935041606,-460.0,0.00019452,2]
[376330383,1753935041615,-460.0,0.00019452,2]
[376330384,1753935041625,-460.0,0.00019452,2]
[376330385,1753935041634,-460.0,0.00019452,2]
[376330386,1753935041645,-460.0,0.00019452,2]
[376330387,1753935041655,-460.0,0.00019452,2]
[376330388,1753935041664,-460.0,0.00019452,2]
[376330389,1753935041674,-460.0,0.00019452,2]
[376330390,1753935041684,-460.0,0.00019452,2]
[376330391,1753935041693,-159.97547167,0.00019452,2]
[376330392,1753935041702,-1091.09,0.00019452,2]
[376330393,1753935041712,-1349.18,0.00019452,2]
[376330394,1753935041721,-582.26,0.00019452,2]
[376330395,1753935041731,-460.0,0.00019452,2]
[376330396,1753935041740,-460.0,0.00019452,2]
[376330397,1753935041750,-460.0,0.00019452,2]
[376330398,1753935041760,-460.0,0.00019452,2]
[376330399,1753935041769,-460.0,0.00019452,2]
[376330400,1753935041778,-460.0,0.00019452,2]
[376330401,1753935041788,-460.0,0.00019452,2]
[376330402,1753935041797,-460.0,0.00019452,2]
[376330403,1753935041807,-460.0,0.00019452,2]
[376330404,1753935041817,-838.15,0.00019452,2]
[376330405,1753935041828,-460.0,0.00019452,2]
[376330406,1753935041837,-1290.12,0.00019452,2]
[376330407,1753935041846,-499.88,0.00019452,2]
[376330408,1753935041856,-497.76,0.00019452,2]
[376330409,1753935041865,-460.0,0.00019452,2]
[376330410,1753935041876,-1000.6,0.00019452,2]
[376330411,1753935041886,-460.0,0.00019452,2]
[376330412,1753935041895,-460.0,0.00019452,2]
[376330413,1753935041905,-460.0,0.00019452,2]
[376330414,1753935041915,-460.0,0.00019452,2]
[376330415,1753935041925,-460.0,0.00019452,2]
[376330416,1753935041935,-460.0,0.00019452,2]
[376330417,1753935041945,-460.0,0.00019452,2]
[376330418,1753935041955,-460.0,0.00019452,2]
[376330419,1753935041964,-460.0,0.00019452,2]
[376330420,1753935041974,-460.0,0.00019452,2]
[376330421,1753935041983,-460.0,0.00019452,2]
[376330422,1753935041993,-460.0,0.00019452,2]
[376330423,1753935042002,-460.0,0.00019452,2]
[376330424,1753935042012,-460.0,0.00019452,2]
[376330425,1753935042021,-988.83,0.00019452,2]
[376330426,1753935042031,-1244.93,0.00019452,2]
[376330427,1753935042040,-540.03138953,0.00019452,2]
[376330428,1753935042049,-460.0,0.00019452,2]
[376330429,1753935042059,-460.0,0.00019452,2]
[376330430,1753935042068,-460.0,0.00019452,2]
[376330431,1753935042078,-1262.25,0.00019452,2]
[376330432,1753935042087,-460.0,0.00019452,2]
[376330433,1753935042096,-451.75,0.00019452,2]
[376330434,1753935042106,-460.0,0.00019452,2]
[376330435,1753935042116,-460.0,0.00019452,2]
[376330436,1753935042125,-460.0,0.00019452,2]
[376330437,1753935042134,-1422.93,0.00019452,2]
[376330438,1753935042144,-460.0,0.00019452,2]
[376330439,1753935042154,-460.0,0.00019452,2]
[376330440,1753935042163,-460.0,0.00019452,2]
[376330441,1753935042172,-460.0,0.00019452,2]
[376330442,1753935042182,-460.0,0.00019452,2]
[376330443,1753935042192,-460.0,0.00019452,2]
[376330444,1753935042201,-850.31,0.00019452,2]
[376330445,1753935042211,-460.0,0.00019452,2]
[376330446,1753935042221,-460.0,0.00019452,2]
[376330447,1753935042230,-632.38,0.00019452,2]
[376330448,1753935042240,-460.0,0.00019452,2]
[376330449,1753935042250,-460.0,0.00019452,2]
[376330450,1753935042259,-460.0,0.00019452,2]
[376330451,1753935042268,-460.0,0.00019452,2]
[376330452,1753935042279,-460.0,0.00019452,2]
[376330453,1753935042288,-460.0,0.00019452,2]
[376330454,1753935042298,-460.0,0.00019452,2]
[376330455,1753935042307,-460.0,0.00019452,2]
[376330456,1753935042317,-460.0,0.00019452,2]
[376330457,1753935042326,-605.76,0.00019452,2]
[376330458,1753935042336,-460.0,0.00019452,2]
[376330459,1753935042345,-460.0,0.00019452,2]
[376330460,1753935042355,-1008.44,0.00019452,2]
[376330461,1753935042364,-460.0,0.00019452,2]
[376330462,1753935042373,-460.0,0.00019452,2]
[376330463,1753935042383,-1534.56,0.00019452,2]
[376330464,1753935042392,-586.04,0.00019452,2]
[376330465,1753935042401,-2486.14,0.00019452,2]
[376330466,1753935042411,-446.38324595,0.00019452,2]
[376330467,1753935042421,-200.0,0.00019459,15]
[376330468,1753935042431,-200.0,0.00019459,15]
[376330469,1753935042440,-200.0,0.00019459,15]
[376330470,1753935042450,-200.0,0.00019459,15]
[376330471,1753935042460,-200.0,0.00019459,15]
[376330472,1753935042470,-200.0,0.00019459,15]
[376330473,1753935042479,-200.0,0.00019459,15]
[376330474,1753935042488,-200.0,0.00019459,15]
[376330475,1753935042498,-460.90256152,0.00019478,2]
[376330476,1753935042507,-557.9730284,0.00019646,2]
[376330477,1753935042516,-1000.0,0.00019721,2]
[376330478,1753935042525,-460.0,0.00019726,2]
[376330479,1753935042535,-460.0,0.00019726,2]
[376330480,1753935042544,-460.0,0.00019726,2]
[376330481,1753935042555,-507.84860421,0.00019726,2]
[376330482,1753935042564,-460.0,0.00019726,2]
[376330483,1753935042573,-541.35069475,0.00019726,2]
[376330484,1753935042584,-460.0,0.00019726,2]
[376330485,1753935042593,-460.0,0.00019726,2]
[376330486,1753935042603,-460.0,0.00019726,2]